Cogmind - Beta 10.2 @@@ ROGUE MODE // 2020.12.15 @ 21:26:59 Player: Demise Result: Destroyed by as-39586 with Assembled Rifle Performance ------------- Evolutions (0) 0 Regions Visited (4) 800 Robots Destroyed (31) 155 Value Destroyed (527) 527 Prototype IDs (15) 300 Alien Tech Used (0) 0 Bonus (-224) -224 TOTAL SCORE: 1558 Bonus ------- Friendly Fire -224 Cogmind --------- Core Integrity 0/250 Matter 210/300 Energy 98/100 System Corruption 4% Temperature Cool (1) Movement Treading (200) Ox2 Location -9/Mines Parts ------- > --- POWER (1) -------- (None) > --- PROPULSION (2) --- Improved Treads > --- UTILITY (2) ------ High-capacity Storage Unit High-capacity Storage Unit > --- WEAPON (2) ------- Autogun > --- INVENTORY (20) --- Improved Treads Improved Treads Improved Treads Improved Heat Sink Disposable Heat Sink Medium Storage Unit High-capacity Storage Unit High-capacity Storage Unit High-capacity Storage Unit High-capacity Matter Pod (200) Signal Interpreter Heavy EM Pulse Gun Autogun Autogun Mining Laser Peak State ------------ > --- POWER ------------ Light Angular Momentum Engine > --- PROPULSION ------- Improved Treads Improved Treads > --- UTILITY ---------- Large Storage Unit High-capacity Storage Unit > --- WEAPON ----------- Heavy EM Pulse Gun Heavy EM Pulse Gun > --- INVENTORY -------- Ion Engine Improved Treads Improved Treads Improved Treads Improved Treads Improved Treads Improved Heat Sink Disposable Heat Sink Medium Storage Unit Large Storage Unit Signal Interpreter Autogun Autogun Autogun Autogun Grenade Launcher Datajack Mining Laser [Rating: 18] Favorites ----------- Power Ion Engine Engine Ion Engine Propulsion Improved Treads Treads Improved Treads Leg Aluminum Leg Utility High-capacity Storage Unit Storage High-capacity Storage Unit Weapon Heavy EM Pulse Gun Energy Gun Heavy EM Pulse Gun Ballistic Gun Autogun Launcher Grenade Launcher Special Weapon Mining Laser Special Melee Weapon Datajack Build | -11 -10 -10 -10 -9 ------- Run | Scr Mat Min Exi Min Slots Evolved . | . . . . . Power . | . . . . . Propulsion . | . . . . . Utility . | . . . . . Weapon . | . . . . . Parts Attached 35 | 3 16 4 4 8 Power 3 | . 1 1 . 1 Engine 3 | . 1 1 . 1 Core . | . . . . . Reactor . | . . . . . Propulsion 6 | 2 2 . . 2 Treads 6 | 2 2 . . 2 Leg . | . . . . . Wheel . | . . . . . Hover . | . . . . . Flight . | . . . . . Utility 8 | 1 5 . 2 . Device . | . . . . . Storage 8 | 1 5 . 2 . Processor . | . . . . . Hackware . | . . . . . Protection . | . . . . . Artifact . | . . . . . Weapon 18 | . 8 3 2 5 Energy Gun 10 | . 6 2 1 1 Energy Cannon . | . . . . . Ballistic Gun 2 | . . . . 2 Ballistic Cannon . | . . . . . Launcher 3 | . 1 . . 2 Special Weapon 2 | . 1 1 . . Impact Weapon . | . . . . . Slashing Weapon . | . . . . . Piercing Weapon . | . . . . . Special Melee Weapon 1 | . . . 1 . Unidentified Prototypes . | . . . . . Parts Lost 8 | . . 1 . 7 Power 2 | . . . . 2 Propulsion 3 | . . . . 3 Utility . | . . . . . Weapon 3 | . . 1 . 2 Highest Loss Streak 7 | . . 1 . 7 Average Slot Usage (%) 99 | . 98 100 100 95 Engine 13 | . 14 14 14 13 Treads 28 | . 28 28 28 28 Storage 28 | . 28 28 28 28 Energy Gun 24 | . 26 26 17 23 Special Melee Weapon 1 | . . . 10 . Naked Turns . | . . . . . Heaviest Build 79 | 15 59 63 79 79 Greatest Support 46 | 40 46 46 46 46 Greatest Overweight (x) 2 | . 1 1 1 2 Average Overweight (x) . | . . 1 1 1 Largest Inventory Capacity 20 | 8 18 18 20 20 Average Capacity 16 | 7 14 18 19 20 Most Carried 20 | 6 18 18 20 20 Average Carried 16 | 5 13 17 19 19 Final Capacity 20 | 8 18 18 20 20 Final Carried 20 | 3 18 18 20 15 Class Distribution -------------------- 84% | Mutant 15% | Hauler-Mutant Dominant Class ---------------- Mutant | -10/Materials Mutant | -10/Mines Hauler-Mutant | -10/Exiles Hauler-Mutant | -9/Mines Resources | -11 -10 -10 -10 -9 ----------- Run | Scr Mat Min Exi Min Matter Collected 828 | 230 469 40 40 49 Remotely . | . . . . . Salvage Created 1132 | 151 483 430 . 68 Parts 71 | 8 35 21 . 7 Haulers Intercepted 2 | . 2 . . . Recyclers Shooed . | . . . . . Parts Field Recycled . | . . . . . Retrieved Matter . | . . . . . Parts Self-Destructed . | . . . . . Prevented . | . . . . . Kills | -11 -10 -10 -10 -9 ------- Run | Scr Mat Min Exi Min Combat Hostiles Destroyed 32 | . 8 6 . 18 Guns 13 | . 6 5 . 2 AOE 17 | . 1 . . 16 Classes Destroyed 9 | 2 6 . . 1 Builder 1 | . 1 . . . Tunneler 3 | 2 . 1 . . Hauler 2 | . 2 . . . Recycler 3 | 1 . 2 . . Operator 1 | . 1 . . . Watcher 2 | . 2 . . . Swarmer 10 | . 3 3 . 4 Grunt 8 | . 5 3 . . Assembled 14 | . . . . 14 Thug 1 | . . 1 . . Best Kill Streak 14 | 2 3 3 . 14 Combat Bots Only 14 | . 3 3 . 14 Max Kills in Single Turn 5 | 1 2 1 . 5 Gunslinging . | . . . . . Exploded 5 | . 1 . . 5 Melee . | . . . . . Uniques/NPCs Destroyed . | . . . . . Combat | -11 -10 -10 -10 -9 -------- Run | Scr Mat Min Exi Min Damage Taken 1673 | . 252 205 . 1216 Core 263 | . 17 18 . 228 Absorbed by Shields . | . . . . . Core Remaining (%) 100 | 100 . . . . Volleys Fired 96 | 9 33 42 . 12 Largest 2 | 2 2 2 . 2 Hottest 145 | 80 100 145 . 90 Shots Fired 155 | 18 59 63 . 15 Gun 122 | 18 52 44 . 8 Cannon . | . . . . . Launcher 8 | . 1 . . 7 Special 25 | . 6 19 . . Kinetic 6 | . . . . 6 Thermal 25 | . 6 19 . . Explosive 8 | . 1 . . 7 Electromagnetic 116 | 18 52 44 . 2 Robot Hit Streak 9 | 5 9 7 . 6 Robot Miss Streak 4 | 2 3 4 . 2 Penetration Max . | . . . . . Secondary Targets 2 | . . 1 . 1 Max Gunslinging Chain 1 | . . 1 . 1 Shots Hit Robots 90 | 10 34 32 4 10 Core Hits 67 | 4 17 11 . 35 Critical Hits . | . . . . . Critical Kills . | . . . . . Critical Parts Destroyed . | . . . . . Melee Attacks 4 | . . . 4 . Impact . | . . . . . Slashing . | . . . . . Piercing . | . . . . . Sneak Attacks 4 | . . . 4 . Combat Hostiles . | . . . . . Follow-up Attacks . | . . . . . Damage Inflicted 2374 | 129 578 548 . 1119 Guns 1283 | 129 540 524 . 90 Cannons . | . . . . . Explosions 1067 | . 38 . . 1029 Melee . | . . . . . Ramming . | . . . . . Kinetic 76 | . . . . 76 Thermal 24 | . . 24 . . Explosive 1067 | . 38 . . 1029 Electromagnetic 1207 | 129 540 524 . 14 Impact . | . . . . . Slashing . | . . . . . Piercing . | . . . . . Highest Corruption 4 | . . . . 4 Average Corruption 4 | . . . . 4 Corruption Purged . | . . . . . Overload Shots . | . . . . . Overflow Damage 19 | . . . . 19 Projectiles . | . . . . . Explosions 19 | . . . . 19 Melee . | . . . . . Knockbacks . | . . . . . Impact . | . . . . . Kinetic . | . . . . . Secondary . | . . . . . Self-Inflicted Damage 118 | . . . . 118 Shots 4 | . . . . 4 Rammed . | . . . . . Targets Rammed . | . . . . . Kicked . | . . . . . Crushed . | . . . . . Highest Temperature 292 | 90 123 292 . 36 Average Temperature 65 | 33 37 93 . 12 Received Heat Transfer 340 | . 102 78 . 160 Siege Activations . | . . . . . Robots Corrupted 3 | . 1 2 . . Combat Hostiles 2 | . 1 1 . . Parts Fried 10 | 1 4 5 . . Impact Corruptions . | . . . . . Robots Melted . | . . . . . Combat Hostiles . | . . . . . Parts Melted . | . . . . . Heat Transferred 50 | . . 50 . . Parts Sabotaged . | . . . . . Parts Stolen . | . . . . . Parts Stripped . | . . . . . Power Chain Reactions . | . . . . . Missiles Intercepted . | . . . . . Alert | -11 -10 -10 -10 -9 ------- Run | Scr Mat Min Exi Min Peak Influence 179 | 15 144 179 . 90 Initial 37 | . 9 37 . . Average 63 | 8 88 48 . 31 Maximum Alert Level . | . . . . . Low Security (%) 100 | 100 100 100 . 100 Level 1 . | . . . . . Level 2 . | . . . . . Level 3 . | . . . . . Level 4 . | . . . . . Level 5 . | . . . . . High Security . | . . . . . Max Security . | . . . . . Squads Dispatched 1 | . 1 . . . Investigation . | . . . . . Extermination . | . . . . . Reinforcement 1 | . 1 . . . Assault . | . . . . . Garrison . | . . . . . Intercept . | . . . . . Construction Impeded . | . . . . . Haulers Reinforced . | . . . . . Stealth | -11 -10 -10 -10 -9 --------- Run | Scr Mat Min Exi Min Distress Signals . | . . . . . Communications Jammed . | . . . . . Distress Signals . | . . . . . Times Spotted 51 | . 16 8 . 27 Peak Tracking Total 13 | . 3 3 . 13 Tactical Retreats 2 | . 1 1 . . Traps | -11 -10 -10 -10 -9 ------- Run | Scr Mat Min Exi Min Traps Triggered . | . . . . . Indirectly . | . . . . . Trap Hack Attempts . | . . . . . Triggered . | . . . . . Disarmed . | . . . . . Reprogrammed . | . . . . . Reused . | . . . . . Traps Extracted . | . . . . . Installed . | . . . . . Triggered . | . . . . . Machines | -11 -10 -10 -10 -9 ---------- Run | Scr Mat Min Exi Min Machines Disabled 2 | . 1 1 . . Max in Single Turn 1 | . 1 1 . . Machines Sabotaged . | . . . . . Garrisons Compromised . | . . . . . Overloaded Fab Kills . | . . . . . Fab Network Shutdowns . | . . . . . Hacking | -11 -10 -10 -10 -9 --------- Run | Scr Mat Min Exi Min Machines Accessed 11 | . 9 1 1 . Terminals 7 | . 6 1 . . Fabricators . | . . . . . Repair Stations 1 | . 1 . . . Recycling Units 2 | . 2 . . . Scanalyzers . | . . . . . Garrison Access . | . . . . . Total Hacks 54 | . 29 2 23 . Successful 46 | . 22 1 23 . Failed 7 | . 7 . . . Catastrophic . | . . . . . Database Lockouts 1 | . . 1 . . Manual 23 | . 21 2 . . Terminals 22 | . 20 2 . . Fabricators . | . . . . . Repair Stations 4 | . 4 . . . Recycling Units 5 | . 5 . . . Scanalyzers . | . . . . . Garrison Access . | . . . . . Terminal Hacks 32 | . 8 1 23 . Record 23 | . . . 23 . Part Schematic 3 | . 2 1 . . Robot Analysis 2 | . 2 . . . Prototype ID Bank 1 | . 1 . . . Level Access Points 1 | . 1 . . . Branch Access Points 1 | . 1 . . . Terminal Index 1 | . 1 . . . Fabricator Hacks . | . . . . . Repair Station Hacks 4 | . 4 . . . Scan Component 2 | . 2 . . . Repair 2 | . 2 . . . Recycling Unit Hacks 3 | . 3 . . . Report Inventory 2 | . 2 . . . Retrieve Components 1 | . 1 . . . Scanalyzer . | . . . . . Garrison Access Hacks . | . . . . . Unauthorized Hacks 7 | . 7 . . . Terminals 5 | . 5 . . . Track 1 | . 1 . . . Botnet 3 | . 3 . . . Operators 1 | . 1 . . . Fabricators . | . . . . . Repair Stations . | . . . . . Recycling Units 2 | . 2 . . . Reject 1 | . 1 . . . Mask 1 | . 1 . . . Scanalyzers . | . . . . . Garrison Access . | . . . . . Data Cores Recovered . | . . . . . Used . | . . . . . Hacking Detections 7 | . 7 . . . Full Trace Events . | . . . . . Feedback Events . | . . . . . Feedback Blocked . | . . . . . Robot Schematics Acquired . | . . . . . Robots Built . | . . . . . Matter . | . . . . . Time . | . . . . . Total Robot Build Rating . | . . . . . Part Schematics Acquired 3 | . 2 1 . . Parts Built . | . . . . . Matter . | . . . . . Time . | . . . . . Total Part Build Rating . | . . . . . Parts Repaired 2 | . 2 . . . Time 52 | . 52 . . . Parts Recycled . | . . . . . Recycled Matter . | . . . . . Retrieved Matter . | . . . . . Retrieved Components 10 | . 10 . . . Parts Scanalyzed . | . . . . . Part Schematics Acquired . | . . . . . Parts Damaged . | . . . . . Bothacking | -11 -10 -10 -10 -9 ------------ Run | Scr Mat Min Exi Min Used RIF Installer . | . . . . . Robots Hacked 4 | . . . 4 . Non-combat 3 | . . . 3 . Combat 1 | . . . 1 . Robot Hacks Applied 4 | . . . 4 . parse_system 4 | . . . 4 . Relay Couplers Released . | . . . . . Robots Rewired . | . . . . . Allies Hacked . | . . . . . Hacks Repelled . | . . . . . Allies | -11 -10 -10 -10 -9 -------- Run | Scr Mat Min Exi Min Total Allies 1 | . . 1 . . Largest Group 1 | . . 1 1 . Highest-Rated Group 31 | . . 31 31 . Highest-Rated Ally 31 | . . 31 31 . Total Orders . | . . . . . Ally Attacks . | . . . . . Total Damage . | . . . . . Kills . | . . . . . Allies Corrupted . | . . . . . Allies Melted . | . . . . . Intel | -11 -10 -10 -10 -9 ------- Run | Scr Mat Min Exi Min Robot Analysis Total 2 | . 2 . . . Derelict Logs Recovered 1 | . . 1 . . Drone Launches . | . . . . . Drone Recoveries . | . . . . . Exploration | -11 -10 -10 -10 -9 ------------- Run | Scr Mat Min Exi Min Turns Passed 3104 | 84 1100 1279 497 144 Spaces Moved 1507 | 34 527 620 265 61 Core . | . . . . . Treads 1499 | 26 527 620 265 61 Legs 8 | 8 . . . . Wheels . | . . . . . Hover . | . . . . . Flight . | . . . . . Fastest Speed 120 | 120 160 180 180 180 Average Speed 174 | 150 165 180 180 180 Slowest Speed 200 | 160 180 180 180 200 Overloaded Moves . | . . . . . Propulsion Burnouts . | . . . . . Robots Hopped . | . . . . . Cave-ins Triggered . | . . . . . Exploration Rate (%) 56 | 3 93 99 64 21 Regions Visited 4 Branch Regions 3 Pre-discovered Areas 1 | . . . 1 . Known Exits Taken 1 | . 1 . . . Unknown Exits Taken 3 | 1 . 1 1 . Scrap Searched 2 | . . 1 . 1 Spaces Dug 8 | . . 8 . . Terrain Destroyed 73 | . 10 15 . 48 Melee . | . . . . . Projectile 20 | . 5 15 . . AOE 53 | . 5 . . 48 Terrain Rammed . | . . . . . Walls Destroyed . | . . . . . Machines Disabled . | . . . . . Actions | -11 -10 -10 -10 -9 --------- Run | Scr Mat Min Exi Min Total 1795 | 50 696 681 287 81 Wait 74 | . 58 15 1 . Move 1503 | 33 526 619 264 61 Hop . | . . . . . Pick Up 43 | 1 35 . 7 . Fast Attach 2 | 1 . 1 . . Attach 10 | 2 2 1 . 5 Detach 1 | . . 1 . . Swap 23 | . 14 2 4 3 Drop 39 | 4 28 . 7 . Fire 96 | 9 33 42 . 12 Melee 4 | . . . 4 . Ram . | . . . . . Kick . | . . . . . Crush . | . . . . . Escape Stasis . | . . . . . Rewire . | . . . . . Trap . | . . . . . Miscellaneous . | . . . . . Route ------- -11/Scrapyard -10/Materials (discovered 4 exits: *Mat x3 / *Min) -10/Mines (discovered 3 exits: *Mat x2 / *Exi) -10/Exiles -9/Mines History --------- Turn | Location | Event 16 | -11/Scrapyard | Discovered new exit (range 3) 85 | -11/Scrapyard | Entered Materials 302 | -10/Materials | Build established: Mutant 560 | -10/Materials | Discovered new exit (range 15) 671 | -10/Materials | Repaired EM Pulse Gun 703 | -10/Materials | Repaired EM Pulse Gun 725 | -10/Materials | Identified exit to Mines 725 | -10/Materials | Identified exit to Materials 1185 | -10/Materials | Entered Mines 1201 | -10/Mines | Met a Derelict bent on vengeance 1538 | -10/Mines | Central database locked down 1579 | -10/Mines | Learned Materials emergency access door positions 1598 | -10/Mines | Discovered exit to Materials (range 13) 1806 | -10/Mines | Escorted by a lone wolf Derelict 1843 | -10/Mines | Discovered exit to Materials (range 6) 2455 | -10/Mines | Deemed a non-threat by the Exiles lab entrance 2456 | -10/Mines | Discovered new exit (range 5) 2464 | -10/Mines | Entered Exiles 2464 | -10/Exiles | Accompanied by 1 ally 2509 | -10/Exiles | Met 8R-AWN 2544 | -10/Exiles | Met EX-HEX 2692 | -10/Exiles | Met EX-DEC 2745 | -10/Exiles | Learned location of Zion (-7) 2777 | -10/Exiles | Met EX-BIN 2936 | -10/Exiles | Build established: Hauler-Mutant 2947 | -10/Exiles | Discovered new exit (range 10) 2961 | -10/Exiles | Entered Mines 3062 | -9/Mines | Assembled infested the area 3087 | -9/Mines | Core integrity fell below 50% 3097 | -9/Mines | Core integrity fell below 20% 3105 | -9/Mines | Destroyed by as-39586 with Assembled Rifle Last Messages --------------- 03085_ as-32217 destroyed. 03085_ as-84660 destroyed. 03085_ as-96909 destroyed. 03085_ Hvy. EM Pulse Gun destroyed. 03085_ Destroyed Hvy. EM Pulse Gun. 03085_ Grenade Launcher destroyed. 03087_ Imp. Treads destroyed. 03087_ Lgt. Angular Momentum Engine destroyed. 03089_ Imp. Treads destroyed. 03089_ System corrupted by crushing effect (+4). 03095_ as-83063 destroyed. 03095_ Switching to secondary target: as-90574. 03097_ Ion Engine destroyed. 03097_ Autogun severed. 03099_ R-06 Scavenger collects Flight Unit. 03100_ C-30 ARC bursts open, deploying its payload. 03100_ G-34 Mercenary unfolds itself. 03101_ Acquired 19 matter. 03102_ R-06 Scavenger collects Flight Unit. 03105_ Imp. Treads destroyed. Map ----- +----------------------------------------------------+ | | | | | | | | | | | | | | | | | | | | | | | | | | | | | | | | | | | ????????????????????????????????????????????? | | ??????####??????????##########??????????????? | | ?????## ##????????## #??????????????? | | ????## ##???????# #??????????????? | | ????# ##??????# #??????????????? | | ?#### ##????### ###### ##?????? | | ?# ###### # #?????? | | ?# ## ## aa ???????? | | ?# ####### #### #?# % @a #??????????????? | | ## #?????# ##??# ### a ##??????????????? | | #?????# #???# ## aa #???????????????? | | ####?????# ##??# ### l ##???????????????? | | ????????## ##?# ## ##????????????????? | | ????????# ### ## ## ##?????????????????? | | ????????# # ### #####??????????????????? | | ????????# # [*g##?????????????????????? | | ????????# [ % % #?????????????????????? | | ????????# = %r ##?????????????????????? | | ????????## ### #??????????????????????? | | ?????????# #?########??????????????????????? | | ?????????# #???????????????????????????????? | | ?????????# #???????????????????????????????? | | ?????????# #???????????????????????????????? | | ?????????# #???????????????????????????????? | | ????????? ????????????????????????????????? | | ????????? ????????????????????????????????? | | ????????? ????????????????????????????????? | | ???????? ????????????????????????????????? | | ???????? ????????????????????????????????? | | ???????? ?????????????????????????????????? | | ???????? ???????????????????????????????????? | | ????????????????????????????????????????????? | | ????????????????????????????????????????????? | +----------------------------------------------------+ Best States ------------- Heat Dissipation 25 Energy Generation 18 Energy Capacity 250 Matter Stores 300 Matter Capacity 300 Sight Range 16 Terrain Scan Density 10 Evasion (%) 40 Recoil Reduction 2 Item Schematics ----------------- Hcp. Storage Unit | -10/Materials | Hacked Lrg. Storage Unit | -10/Materials | Hacked Med. Storage Unit | -10/Mines | Hacked Robot Schematics ------------------ None Fabricated ------------ Nothing Alien Tech Used ----------------- None Achievements -------------- None Challenges ------------ None Game ------ Seed RemoteGatlingManipulator Manual? 0 Play Time 00:25:28 Cumulative 126.4 hours Start 2020.12.15 @ 21:03:25 End 2020.12.15 @ 21:26:59 Sessions 1 Manual Loads 0 Difficulty Rogue Special Mode None Game No. 116 Rogue 116 Adventurer 0 Explorer 0 Win Type - Total 0 Types 0/0/0/0/0/0/0/0/0 Lore% 51 Gallery% 62 Achievement% 53 Wizard Run 0 Options --------- ASCII 0 Keyboard 1 Movement Numpad Keybinds 0 Fullscreen 1 Font 12/Terminus Map View 83x54 Tactical HUD 1 Map Filters NONE Filters NONE Steam 1 RUN: ec8d026d-cfde-4c42-bac2-956fca9747f3